bitfinex/quotes_SOLUSD_20220212
["timestamp","ask_amount","ask_price","bid_price","bid_amount"]
[1644673372305,5.34222449,95.461,95.394,5.239]
[1644673372505,5.34222449,95.461,95.394,2.38366791]
[1644673372704,2.93708604,95.452,95.394,2.38366791]
[1644673372905,2.93708604,95.449,95.391,38.43155297]
[1644673373106,33.10929336,95.448,95.391,38.43155297]
[1644673373307,0.25,95.447,95.375,5.239]
[1644673373505,2.93708604,95.445,95.375,5.239]
[1644673373706,2.93708604,95.438,95.352,22.7832]
[1644673373905,5.49,95.444,95.352,22.7832]
[1644673373906,2.93708604,95.439,95.352,22.7832]
[1644673374108,2.93708604,95.434,95.352,22.7832]
[1644673374307,2.93708604,95.435,95.353,36.08791865]
[1644673374508,5.241,95.434,95.353,36.33791865]
[1644673374708,5.241,95.434,95.354,2.38366791]
[1644673375107,5.241,95.434,95.355,0.25]
[1644673375307,5.34222449,95.433,95.355,0.25]
[1644673375509,5.34222449,95.433,95.356,7.62466791]
[1644673375710,0.25,95.432,95.357,0.25]
[1644673376018,5.34222449,95.431,95.357,2.63366791]
[1644673376309,5.491,95.43,95.358,2.38366791]
[1644673376511,5.34222449,95.429,95.358,2.38366791]
[1644673376711,5.491,95.428,95.359,0.25]
[1644673376909,0.25,95.428,95.359,0.25]
[1644673377109,0.25,95.428,95.36,5.241]
[1644673377311,0.25,95.428,95.361,0.25]
[1644673377515,0.25,95.428,95.362,5.241]
[1644673377715,0.25,95.428,95.363,0.25]
[1644673377913,0.25,95.439,95.363,0.25]
[1644673378114,0.25,95.44,95.364,2.38366791]
[1644673378314,2.93708604,95.447,95.365,0.25]
[1644673378514,0.16564098,95.448,95.365,0.25]
[1644673378714,0.16564098,95.448,95.366,2.38366791]
[1644673379015,0.16564098,95.448,95.371,45.82721937]
[1644673379215,0.16564098,95.448,95.372,0.25]
[1644673379415,0.16564098,95.448,95.372,2.63366791]
[1644673379615,0.16564098,95.448,95.372,0.25]
[1644673379818,0.16564098,95.448,95.373,2.38366791]
[1644673380217,0.16564098,95.448,95.374,0.25]
[1644673380516,0.16564098,95.448,95.375,2.38366791]
[1644673380719,0.16564098,95.448,95.38,15.14]
[1644673380916,0.16564098,95.448,95.381,5.24]
[1644673381116,0.16564098,95.448,95.381,7.87366791]
[1644673381317,0.16564098,95.448,95.382,2.38366791]
[1644673381519,0.16564098,95.448,95.383,5.24]
[1644673381719,0.16564098,95.448,95.383,5.49]
[1644673381926,0.16564098,95.448,95.384,24.95496791]
[1644673382118,0.41561188,95.466,95.385,5.24]
[1644673382318,5.34013306,95.465,95.39,15.14]
[1644673382522,5.34013306,95.465,95.391,5.239]
[1644673382718,5.34013306,95.465,95.391,5.489]
[1644673382919,5.34013306,95.465,95.391,7.87266791]
[1644673383120,5.34013306,95.465,95.392,2.38366791]
[1644673383329,0.25,95.464,95.393,0.25]
[1644673383523,5.34013306,95.463,95.393,0.25]
[1644673384420,5.34013306,95.463,95.392,2.38366791]
[1644673384621,5.489,95.462,95.39,15.14]
[1644673384820,5.34013306,95.461,95.39,15.14]
[1644673385024,5.239,95.46,95.39,15.14]
[1644673385222,5.489,95.46,95.39,15.14]
[1644673385422,5.34013306,95.459,95.39,15.14]
[1644673385624,5.239,95.458,95.39,15.14]
[1644673385822,5.34013306,95.457,95.391,0.25]
[1644673386224,0.25,95.456,95.391,0.25]
[1644673386629,5.34013306,95.455,95.391,0.25]
[1644673386829,5.34013306,95.455,95.392,2.38366791]
[1644673387025,5.34013306,95.459,95.393,5.239]
[1644673387229,5.34013306,95.463,95.393,5.489]
[1644673387425,5.34013306,95.463,95.394,2.38366791]
[1644673387629,0.1656927,95.464,95.395,5.239]
[1644673387926,0.1656927,95.464,95.396,23.6877]
[1644673388124,0.1656927,95.464,95.4,15.14]
[1644673388325,0.1656927,95.464,95.4,42.2722]
[1644673388524,0.1656927,95.464,95.401,40.80416897]
[1644673388725,0.1656927,95.464,95.401,43.18783688]
[1644673388925,0.1656927,95.464,95.402,2.38366791]
[1644673389924,0.1656927,95.464,95.403,5.239]
[1644673390331,0.1656927,95.464,95.404,2.63366791]
[1644673390728,0.1656927,95.464,95.405,7.62266791]
[1644673391127,0.1656927,95.464,95.406,2.63366791]
[1644673391330,0.1656927,95.464,95.407,5.239]
[1644673391528,0.1656927,95.464,95.407,7.62266791]
[1644673391728,0.1656927,95.464,95.408,2.63366791]
[1644673391928,0.1656927,95.464,95.409,5.239]
[1644673392130,3.35280136,95.473,95.409,7.62266791]
[1644673392328,5.34059825,95.472,95.41,2.63366791]
[1644673392528,5.34059825,95.472,95.411,5.238]
[1644673392727,5.34059825,95.472,95.412,0.25]
[1644673394131,5.34059825,95.472,95.411,5.238]
[1644673394330,2.93708604,95.47,95.411,5.238]
[1644673394632,2.93708604,95.455,95.331,24.4877]
[1644673394931,2.93708604,95.444,95.34,15.14]
[1644673395232,2.93708604,95.438,95.34,15.14]
[1644673395630,3.18708604,95.437,95.341,38.48042221]
[1644673395829,28.77409825,95.436,95.341,40.86409012]
[1644673396033,28.77409825,95.436,95.342,5.491]
[1644673396034,5.34059825,95.435,95.342,5.491]
[1644673396230,5.59059825,95.435,95.342,7.87466791]
[1644673396430,5.59059825,95.435,95.343,25.62246791]
[1644673396630,5.34059825,95.434,95.344,5.241]
[1644673396831,0.25,95.433,95.344,5.241]
[1644673397231,5.34059825,95.432,95.345,2.38366791]
[1644673397431,10.58159825,95.432,95.346,5.241]
[1644673397632,0.25,95.433,95.346,5.241]
[1644673397633,5.34059825,95.431,95.35,15.14]
[1644673397834,5.34059825,95.432,95.351,5.241]
[1644673398036,5.34059825,95.432,95.352,0.25]
[1644673398233,5.34059825,95.434,95.352,0.25]
[1644673398434,23.4335,95.436,95.352,2.63366791]
[1644673398633,23.4335,95.436,95.353,2.38366791]
[1644673398833,23.4335,95.436,95.36,15.7286]
[1644673399034,23.4335,95.436,95.361,46.48973934]
[1644673399234,23.4335,95.436,95.361,49.12340725]
[1644673399436,23.4335,95.436,95.362,25.59026791]
[1644673399635,23.4335,95.436,95.363,5.241]
[1644673399834,23.4335,95.436,95.363,7.87466791]
[1644673400039,23.4335,95.436,95.364,2.38366791]
[1644673400236,23.4335,95.436,95.365,5.491]
[1644673400739,5.59362104,95.435,95.366,2.38366791]
[1644673400936,5.34362104,95.434,95.367,0.25]
[1644673401135,5.59362104,95.434,95.368,5.241]
[1644673401336,5.59362104,95.434,95.369,0.25]
[1644673401541,10.58462104,95.433,95.37,5.241]
[1644673401740,5.59362104,95.432,95.362,23.2066]
[1644673401941,10.75020705,95.431,95.362,23.2066]
[1644673402147,2.93708604,95.429,95.362,23.2066]
[1644673402439,2.93708604,95.427,95.361,41.24873934]
[1644673402639,2.93708604,95.426,95.361,41.24873934]
[1644673402839,2.93708604,95.423,95.361,41.24873934]
[1644673403038,2.93708604,95.421,95.361,41.24873934]
[1644673403249,5.34362104,95.421,95.362,0.25]
[1644673403437,0.16558601,95.431,95.362,2.63366791]
[1644673403638,5.34009683,95.43,95.362,25.13676791]
[1644673403839,5.34009683,95.43,95.363,2.38366791]
[1644673404338,5.34009683,95.43,95.364,0.25]
[1644673404537,0.16558601,95.431,95.364,0.25]
[1644673404739,0.16558601,95.431,95.365,2.38366791]
[1644673405139,0.16558601,95.431,95.366,5.491]
[1644673405339,0.16558601,95.431,95.38,15.14]
[1644673405539,0.16558601,95.431,95.382,43.39394413]
[1644673405742,0.16558601,95.431,95.383,5.49]
[1644673406140,0.16558601,95.431,95.384,2.38366791]
[1644673406341,0.16558601,95.431,95.385,5.49]
[1644673406540,0.16558601,95.431,95.4,15.14]
[1644673406742,0.16558601,95.431,95.401,41.64712614]
[1644673406946,0.16555043,95.459,95.401,44.03079405]
[1644673407141,5.34013525,95.458,95.401,44.03079405]
[1644673407341,5.34013525,95.458,95.402,2.38366791]
[1644673407542,5.34013525,95.458,95.403,5.239]
[1644673407742,5.34013525,95.458,95.403,5.489]
[1644673407943,5.34013525,95.458,95.404,2.38366791]
[1644673408164,5.34013525,95.458,95.405,5.239]
[1644673408347,5.34013525,95.458,95.41,15.14]
[1644673408541,5.34013525,95.458,95.411,5.239]
[1644673408742,0.16555043,95.459,95.411,5.489]
[1644673411951,2.93708604,95.471,95.411,5.489]
[1644673412155,5.34053545,95.471,95.411,5.489]
[1644673412755,8.44329156,95.472,95.411,5.489]
[1644673412955,5.34053545,95.471,95.411,5.489]
[1644673416970,0.16571209,95.47,95.411,5.489]
[1644673418172,5.238,95.469,95.411,5.239]
[1644673418370,5.338701,95.468,95.411,5.239]
[1644673418570,5.238,95.467,95.401,36.15712614]
[1644673418777,5.588701,95.466,95.401,36.15712614]
[1644673418969,5.338701,95.465,95.401,36.15712614]
[1644673419379,0.25,95.464,95.401,36.15712614]
[1644673419770,15.7283,95.46,95.402,0.25]
[1644673419986,5.338701,95.459,95.402,0.25]
[1644673420270,5.588701,95.459,95.402,0.25]
[1644673420871,0.25,95.459,95.402,0.25]
[1644673421072,10.57824149,95.458,95.402,0.25]
[1644673421273,8.52632753,95.457,95.402,0.25]
[1644673421473,39.44535573,95.456,95.369,5.239]
[1644673421676,18.66718604,95.45,95.35,15.14]
[1644673421871,5.241,95.449,95.361,5.24]
[1644673422073,2.93708604,95.445,95.351,5.24]
[1644673422270,5.491,95.444,95.351,5.24]
[1644673422470,5.58924149,95.444,95.352,49.92858276]
[1644673422672,10.58024149,95.443,95.353,5.241]
[1644673422871,2.93708604,95.44,95.353,7.87466791]
[1644673423074,5.241,95.439,95.354,2.38366791]
[1644673423277,5.33924149,95.438,95.355,0.25]
[1644673423477,10.58024149,95.438,95.355,0.25]
[1644673423677,5.58924149,95.437,95.355,0.25]
[1644673423883,10.58024149,95.436,95.356,5.241]
[1644673424077,5.33924149,95.435,95.356,5.241]
[1644673424278,5.241,95.434,95.357,0.25]
[1644673424478,5.33924149,95.433,95.357,2.63366791]
[1644673424676,5.241,95.432,95.357,2.63366791]
[1644673424877,5.241,95.432,95.358,2.38366791]
[1644673425077,5.58924149,95.431,95.358,2.38366791]
[1644673425276,5.33924149,95.43,95.359,5.491]
[1644673425679,0.25,95.429,95.36,2.38366791]
[1644673425878,13.921,95.429,95.36,2.38366791]
[1644673426079,5.33924149,95.428,95.361,0.25]
[1644673426279,0.25,95.427,95.361,5.491]
[1644673426485,0.25,95.427,95.362,2.38366791]
[1644673426681,5.241,95.426,95.361,0.25]
[1644673427284,5.241,95.428,95.362,2.38366791]
[1644673427484,15.733,95.43,95.362,2.38366791]
[1644673427684,5.33849689,95.429,95.363,5.491]
[1644673428486,0.25,95.428,95.363,5.491]
[1644673428688,15.733,95.43,95.363,5.491]
[1644673428689,0.25,95.429,95.363,5.491]
[1644673428886,5.241,95.428,95.363,5.491]
[1644673429487,5.3376852,95.427,95.363,5.491]
[1644673429688,5.241,95.426,95.363,0.25]
[1644673429888,8.13,95.429,95.364,5.241]
[1644673430089,10.57864224,95.428,95.354,0.25]
[1644673430290,8.13,95.429,95.364,2.38366791]
[1644673430489,0.25,95.427,95.365,7.62466791]
[1644673430689,5.241,95.426,95.366,0.25]
[1644673430889,0.25,95.428,95.366,5.491]
[1644673431090,0.25,95.425,95.366,0.25]
[1644673431292,0.25,95.426,95.366,0.25]
[1644673431497,5.241,95.425,95.366,0.25]
[1644673431797,0.25,95.424,95.366,0.25]
[1644673431991,0.25,95.424,95.355,0.25]
[1644673432392,0.25,95.424,95.356,2.38366791]
[1644673432794,0.25,95.424,95.357,0.25]
[1644673432993,0.25,95.427,95.357,0.25]
[1644673433193,10.57705795,95.426,95.358,2.38366791]
[1644673433395,5.33605795,95.425,95.358,2.38366791]
[1644673433597,0.25,95.425,95.359,0.25]
[1644673433795,0.25,95.425,95.357,0.25]
[1644673434594,0.1655763,95.428,95.355,0.25]
[1644673434799,15.7347,95.42,95.355,0.25]
[1644673434997,10.57803348,95.419,95.354,5.241]
[1644673435196,10.82803348,95.419,95.354,5.241]
[1644673435397,5.33703348,95.418,95.354,5.241]
[1644673435597,5.241,95.417,95.332,23.7561]
[1644673435796,5.491,95.417,95.332,23.7561]
[1644673435998,5.33430158,95.416,95.332,23.7561]
[1644673436297,5.491,95.415,95.353,0.25]
[1644673436497,0.25,95.415,95.353,0.25]
[1644673436698,5.33430158,95.414,95.353,0.25]
[1644673436900,15.7366,95.41,95.353,0.25]
[1644673437198,0.25,95.409,95.353,0.25]
[1644673438400,5.242,95.408,95.353,0.25]
[1644673438600,0.25,95.409,95.353,0.25]
[1644673440003,15.7366,95.41,95.353,0.25]
[1644673440401,24.0979,95.422,95.354,2.38366791]
[1644673440601,5.242,95.425,95.354,7.62466791]
[1644673440802,377.16868765,95.454,95.354,7.62466791]
[1644673440803,8.17808604,95.44,95.355,0.25]
[1644673441001,5.241,95.431,95.355,25.76616791]
[1644673441200,29.16527913,95.43,95.356,2.38366791]
[1644673441601,29.16527913,95.43,95.357,0.25]
[1644673441800,29.16527913,95.43,95.356,2.38366791]
[1644673442201,29.16527913,95.43,95.358,2.38366791]
[1644673442401,29.08079073,95.43,95.358,2.38366791]
[1644673442602,0.1655116,95.43,95.359,0.25]
[1644673443002,0.1655116,95.43,95.36,2.38366791]
[1644673443203,0.1655116,95.43,95.361,0.25]
[1644673443404,0.1655116,95.43,95.362,5.241]
[1644673443804,0.1655116,95.43,95.363,0.25]
[1644673444611,0.1655116,95.43,95.355,23.1325]
[1644673444612,15.7349,95.42,95.264,2.93708604]
[1644673444807,2.93708604,95.402,95.27,14.64]
[1644673445011,2.93708604,95.386,95.265,16.99550589]
[1644673445207,47.4347,95.385,95.265,16.99550589]
[1644673445407,2.93708604,95.378,95.263,71.5378]
[1644673445608,2.93708604,95.377,95.264,42.54091253]
[1644673445811,5.56273721,95.377,95.27,15.7433]
[1644673446008,5.56273721,95.384,95.28,15.14]
[1644673446208,5.56273721,95.384,95.282,104.9]
[1644673446416,2.93708604,95.399,95.323,16.53498492]
[1644673446611,2.93708604,95.402,95.324,5.243]
[1644673446812,0.25,95.401,95.324,42.04826436]
[1644673447014,5.669638,95.401,95.324,42.04826436]
[1644673447212,2.93708604,95.407,95.33,30.8731]
[1644673447408,2.93708604,95.406,95.331,5.242]
[1644673447608,2.93708604,95.408,95.331,5.492]
[1644673447910,2.93708604,95.407,95.331,5.492]
[1644673448108,8.60672404,95.407,95.331,5.492]
[1644673448309,2.93708604,95.407,95.331,5.492]
[1644673448509,5.669638,95.406,95.331,5.492]
[1644673448711,2.93708604,95.409,95.34,15.7318]
[1644673448910,2.93708604,95.416,95.34,30.8718]
[1644673449110,2.93708604,95.417,95.341,0.25]
[1644673449314,2.93708604,95.413,95.341,0.25]
[1644673449545,2.93708604,95.413,95.341,24.2704]
[1644673449945,2.93708604,95.415,95.341,24.2704]
[1644673450148,2.93708604,95.417,95.341,24.2704]
[1644673450343,2.93708604,95.419,95.35,15.7303]
[1644673450546,2.93708604,95.42,95.35,15.7303]
[1644673450745,1.4823713,95.393,95.351,0.25]
[1644673450947,1.4823713,95.392,95.351,0.25]
[1644673451746,1.4823713,95.394,95.352,5.242]
[1644673451943,1.4823713,95.393,95.351,0.25]
[1644673452143,0.16550513,95.406,95.351,0.25]
[1644673452144,1.4823713,95.392,95.352,5.242]
[1644673452347,1.4823713,95.39,95.353,0.25]
[1644673452547,1.4823713,95.387,95.354,5.242]
[1644673452745,1.4823713,95.387,95.355,37.08592731]
[1644673452945,1.4823713,95.387,95.356,5.242]
[1644673453145,1.4823713,95.386,95.355,37.08592731]
[1644673453348,1.4823713,95.382,95.355,37.08592731]
[1644673453547,1.4823713,95.379,95.355,37.08592731]
[1644673453947,1.4823713,95.379,95.356,0.25]
[1644673454146,1.4823713,95.379,95.355,37.08592731]
[1644673454549,1.4823713,95.374,95.355,37.08592731]
[1644673454748,1.4823713,95.374,95.341,24.0204]
[1644673454955,1.4823713,95.373,95.331,5.243]
[1644673455148,1.7323713,95.373,95.307,28.6084]
[1644673455348,5.243,95.372,95.307,23.3654]
[1644673455552,1.4823713,95.349,95.308,5.244]
[1644673455849,1.4823713,95.353,95.309,43.99028138]
[1644673456047,1.4823713,95.354,95.309,43.99028138]
[1644673456450,1.4823713,95.354,95.31,0.25]
[1644673456649,1.4823713,95.355,95.31,0.25]
[1644673457050,1.4823713,95.354,95.31,0.25]
[1644673457251,10.3723713,95.354,95.31,0.25]
[1644673457456,8.89,95.354,95.31,0.25]
[1644673459256,10.3723713,95.354,95.31,0.25]
[1644673459458,10.3723713,95.354,95.309,43.74028138]
[1644673459653,8.89,95.354,95.309,43.74028138]
[1644673460057,1.4823713,95.353,95.309,43.74028138]
[1644673460254,1.4823713,95.352,95.311,0.7415]
[1644673460654,1.4823713,95.351,95.311,0.7415]
[1644673461056,1.4823713,95.352,95.311,0.7415]
[1644673461654,1.4823713,95.354,95.311,0.7415]
[1644673461855,0.16533354,95.353,95.312,5.244]
[1644673462261,0.16533354,95.353,95.313,0.25]
[1644673462558,0.16533354,95.353,95.314,5.244]
[1644673462854,0.16533354,95.353,95.315,0.25]
[1644673463054,0.16533354,95.353,95.316,5.244]
[1644673463355,0.16533354,95.353,95.32,15.14]
[1644673463555,0.16533354,95.353,95.321,5.244]
[1644673463853,0.16533354,95.353,95.321,5.494]
[1644673464054,1.4823713,95.373,95.321,5.494]
[1644673464261,2.96456644,95.406,95.324,45.0]
[1644673464457,1.48193737,95.396,95.331,0.48]
[1644673464757,2.96456644,95.431,95.342,42.0]
[1644673464955,2.96456644,95.434,95.35,30.8676]
[1644673465163,5.51948587,95.453,95.361,0.48]
[1644673465355,5.51948587,95.453,95.37,15.14]
[1644673465557,275.20642544,95.454,95.381,0.48]
[1644673465756,4.40562906,95.506,95.391,0.48]
[1644673465957,4.40562906,95.506,95.4,30.8574]
[1644673466357,46.88569422,95.505,95.401,36.39335921]
[1644673466561,46.88569422,95.505,95.401,39.51852712]
[1644673466962,46.88569422,95.505,95.43,15.7165]
[1644673467160,46.88569422,95.505,95.431,38.73068402]
[1644673467358,46.88569422,95.505,95.431,41.36435193]
[1644673467560,46.88569422,95.505,95.432,2.38366791]
[1644673467862,46.88569422,95.505,95.433,0.25]
[1644673468063,0.25,95.504,95.433,0.25]
[1644673469061,0.25,95.504,95.432,0.25]
[1644673469360,0.25,95.504,95.431,38.73068402]
[1644673469361,5.237,95.503,95.431,38.73068402]
[1644673469661,0.25,95.504,95.432,0.9915]
[1644673469861,46.88569422,95.505,95.432,6.2285]
[1644673470263,5.237,95.538,95.44,15.715]
[1644673470467,5.237,95.538,95.45,15.14]
[1644673470763,5.236,95.539,95.451,5.485]
[1644673470963,15.7165,95.54,95.451,5.485]
[1644673471163,36.71690073,95.539,95.452,45.59768698]
[1644673471364,36.71690073,95.539,95.453,5.235]
[1644673471666,36.71690073,95.539,95.453,5.485]
[1644673472065,0.12448685,95.504,95.453,5.485]
[1644673472466,0.12448685,95.504,95.453,0.25]
[1644673473068,0.12448685,95.504,95.454,0.7415]
[1644673474065,5.236,95.503,95.454,0.7415]
[1644673475073,0.25,95.502,95.454,0.7415]
[1644673475272,5.236,95.501,95.454,0.7415]
[1644673475690,0.25,95.5,95.454,0.7415]
[1644673475885,5.236,95.499,95.454,0.7415]
[1644673476285,0.25,95.498,95.454,0.7415]
[1644673476692,5.236,95.497,95.454,0.7415]
[1644673476891,0.25,95.498,95.454,0.7415]
[1644673477288,0.25,95.498,95.443,0.7415]
[1644673477692,5.237,95.497,95.443,0.7415]
[1644673478090,0.25,95.496,95.443,0.7415]
[1644673478293,5.237,95.495,95.443,0.7415]
[1644673478691,0.25,95.494,95.443,0.7415]
[1644673479089,5.237,95.493,95.443,0.7415]
[1644673479489,5.237,95.499,95.443,0.7415]
[1644673480289,5.237,95.499,95.437,0.7415]
[1644673480692,15.7232,95.49,95.437,0.7415]
[1644673480893,46.65152476,95.489,95.437,0.7415]
[1644673481091,5.237,95.488,95.437,0.7415]
[1644673481291,0.25,95.487,95.437,0.7415]
[1644673481491,46.90152476,95.489,95.437,0.7415]
[1644673482890,5.237,95.488,95.437,0.7415]
[1644673483291,0.25,95.487,95.413,0.7415]
[1644673483496,5.238,95.486,95.413,0.7415]
[1644673483694,0.25,95.485,95.414,48.51026368]
[1644673484093,0.25,95.485,95.415,0.25]
[1644673484494,0.12446101,95.496,95.415,0.25]
[1644673484699,0.12446101,95.496,95.43,15.14]
[1644673484894,0.12446101,95.496,95.431,22.9667]
[1644673485194,0.12446101,95.496,95.441,0.48]
[1644673485394,0.12446101,95.496,95.45,15.14]
[1644673485696,0.12446101,95.496,95.46,15.14]
[1644673485996,0.12446101,95.496,95.47,15.14]
[1644673486198,0.12446101,95.496,95.471,45.82845824]
[1644673486595,0.12446101,95.496,95.471,48.95362615]
[1644673486994,43.84205788,95.558,95.471,48.95362615]
[1644673487196,5.234,95.557,95.471,48.95362615]
[1644673487995,13.554,95.557,95.471,48.95362615]
[1644673488196,0.25,95.556,95.471,46.56995824]
[1644673488395,5.234,95.555,95.472,5.234]
[1644673488795,0.25,95.554,95.473,0.25]
[1644673489198,5.234,95.553,95.473,0.25]
[1644673489597,0.25,95.552,95.474,0.7415]
[1644673489797,15.7137,95.55,95.474,0.7415]
[1644673489997,5.234,95.549,95.474,0.7415]
[1644673490196,5.484,95.549,95.474,0.7415]
[1644673492101,35.54519577,95.539,95.474,0.7415]
[1644673492301,5.485,95.538,95.474,0.7415]
[1644673492700,5.485,95.538,95.473,0.7415]
[1644673495811,13.83645306,95.538,95.473,0.7415]
[1644673496011,15.7166,95.53,95.473,0.7415]
[1644673496213,5.485,95.529,95.471,0.7415]
[1644673496414,13.875,95.529,95.471,0.7415]
[1644673497114,1.04635727,95.469,95.42,5.235]
[1644673497315,1.04635727,95.469,95.399,5.237]
[1644673497316,0.25,95.468,95.399,5.237]
[1644673497516,5.488,95.468,95.381,53.788]
[1644673497714,0.25,95.468,95.381,53.788]
[1644673498117,41.31962604,95.468,95.382,45.38657033]
[1644673498316,41.31962604,95.468,95.383,5.239]
[1644673498517,41.31962604,95.468,95.383,24.40765283]
[1644673498719,41.31962604,95.468,95.384,18.91865283]
[1644673498916,5.239,95.467,95.385,5.239]
[1644673499116,5.239,95.467,95.39,15.14]
[1644673499315,0.25,95.466,95.39,15.14]
[1644673499516,5.239,95.465,95.39,15.14]
[1644673499717,41.06962604,95.468,95.391,2.38366791]
[1644673500720,41.06962604,95.468,95.392,0.25]
[1644673501015,41.06962604,95.468,95.393,7.62266791]
[1644673501220,41.06962604,95.468,95.394,0.25]
[1644673501418,41.06962604,95.468,95.395,5.239]
[1644673501820,0.25,95.467,95.396,0.25]
[1644673502036,0.12436732,95.467,95.398,36.40240663]
[1644673502239,0.12436732,95.467,95.399,5.489]
[1644673502440,0.12436732,95.467,95.399,7.87266791]
[1644673502838,0.12436732,95.467,95.4,2.38366791]
[1644673503238,0.37436732,95.467,95.401,0.25]
[1644673503440,0.37436732,95.467,95.398,36.40240663]
[1644673503441,5.239,95.466,95.398,36.40240663]
[1644673503638,0.12436732,95.467,95.4,2.38366791]
[1644673503841,0.12436732,95.467,95.402,2.38366791]
[1644673504840,0.12436732,95.467,95.403,0.25]
[1644673505241,0.12436732,95.467,95.404,2.38366791]
[1644673505442,0.37436732,95.467,95.4,0.25]
[1644673505643,5.239,95.466,95.4,0.25]
[1644673505846,0.25,95.465,95.4,0.25]
[1644673506143,5.239,95.464,95.4,0.25]
[1644673506349,0.25,95.463,95.4,42.02925779]
[1644673506544,5.239,95.462,95.4,0.25]
[1644673506746,0.25,95.461,95.4,0.25]
[1644673506946,5.239,95.46,95.4,0.25]
[1644673507349,0.25,95.459,95.4,0.25]
[1644673507746,0.25,95.459,95.39,5.489]
[1644673508349,0.12436409,95.466,95.39,5.489]
[1644673508350,5.239,95.458,95.39,0.25]
[1644673508646,5.239,95.465,95.39,0.25]
[1644673508849,0.25,95.457,95.39,0.25]
[1644673509046,5.239,95.456,95.382,0.25]
[1644673509249,5.239,95.456,95.391,2.38366791]
[1644673509547,0.12436409,95.466,95.391,2.38366791]
[1644673509746,5.239,95.465,95.392,0.25]
[1644673510046,0.37436409,95.466,95.393,2.38366791]
[1644673510247,5.239,95.465,95.394,0.25]
[1644673510650,0.25,95.464,95.395,2.38366791]
[1644673510845,5.239,95.463,95.395,2.38366791]
[1644673511046,5.239,95.463,95.396,0.25]
[1644673511248,0.25,95.462,95.396,0.25]
[1644673511453,0.25,95.462,95.397,5.239]
[1644673511749,5.239,95.461,95.398,0.25]
[1644673511948,0.12433823,95.458,95.398,0.25]
[1644673512448,0.12433823,95.458,95.399,7.62266791]
[1644673512651,0.12433823,95.458,95.399,2.38366791]
[1644673512849,0.12433823,95.458,95.4,0.25]
[1644673513951,0.12433823,95.458,95.401,5.239]
[1644673514150,5.239,95.457,95.392,0.25]
[1644673514353,8.74433823,95.458,95.391,0.25]
[1644673514551,5.239,95.456,95.386,2.38366791]
[1644673514752,0.25,95.455,95.386,2.38366791]
[1644673514950,5.239,95.454,95.386,2.38366791]
[1644673515151,39.97120268,95.453,95.386,2.38366791]
[1644673515353,40.22120268,95.453,95.386,2.38366791]
[1644673515553,5.24,95.452,95.386,2.38366791]
[1644673515750,0.25,95.451,95.387,0.25]
[1644673516050,5.24,95.45,95.387,0.25]
[1644673516250,0.25,95.449,95.387,0.25]
[1644673516453,5.24,95.448,95.387,0.25]
[1644673516850,0.25,95.447,95.387,0.25]
[1644673517051,0.25,95.447,95.382,0.25]
[1644673517252,5.24,95.446,95.382,0.25]
[1644673517654,0.25,95.445,95.382,0.25]
[1644673517951,5.24,95.444,95.374,5.24]
[1644673518155,5.24,95.444,95.36,15.14]
[1644673518452,0.25,95.443,95.356,5.24]
[1644673518651,5.241,95.442,95.321,5.241]
[1644673518852,24.2365,95.441,95.322,92.16449844]
[1644673519054,5.242,95.44,95.322,92.16449844]
[1644673519253,0.25,95.439,95.323,5.242]
[1644673519452,39.71307119,95.437,95.323,5.242]